[Event "Early-Titled-Tuesday-Blitz-June-18-2024"]
[Site "Chess.com"]
[Date "2024.06.18"]
[Round "4"]
[White "doublesik"]
[Black "monomita"]
[Result "1-0"]
[WhiteElo "2577"]
[BlackElo "2779"]
[TimeControl "180+1"]
[EndTime "8:41:49 PDT"]
[Termination "doublesik won by resignation"]

1. d4 {[%clk 0:03:00.1]} 1... e6 {[%clk 0:03:00.9]} 2. c4 {[%clk 0:02:59.1]}
2... Nf6 {[%clk 0:03:01.8]} 3. Nf3 {[%clk 0:02:59]} 3... d5 {[%clk 0:02:59.8]}
4. Nc3 {[%clk 0:02:56.9]} 4... c6 {[%clk 0:03:00.3]} 5. cxd5 {[%clk 0:02:54.4]}
5... exd5 {[%clk 0:02:59]} 6. Qc2 {[%clk 0:02:52.6]} 6... g6 {[%clk 0:02:59.2]}
7. Bg5 {[%clk 0:02:49.9]} 7... Be7 {[%clk 0:02:57.2]} 8. e3 {[%clk 0:02:43]}
8... O-O {[%clk 0:02:56.9]} 9. Bd3 {[%clk 0:02:41.3]} 9... Nh5 {[%clk
0:02:51.4]} 10. Bxe7 {[%clk 0:02:34]} 10... Qxe7 {[%clk 0:02:51.6]} 11. O-O
{[%clk 0:02:31]} 11... Nd7 {[%clk 0:02:51.6]} 12. Rab1 {[%clk 0:02:28.9]} 12...
a5 {[%clk 0:02:46.3]} 13. a3 {[%clk 0:02:28.8]} 13... b5 {[%clk 0:02:45.6]} 14.
Ne2 {[%clk 0:02:21]} 14... Bb7 {[%clk 0:02:43.4]} 15. Rfe1 {[%clk 0:02:12]}
15... b4 {[%clk 0:02:39.6]} 16. e4 {[%clk 0:02:01.9]} 16... dxe4 {[%clk
0:02:25.7]} 17. Bxe4 {[%clk 0:02:02.8]} 17... Qd6 {[%clk 0:02:16.8]} 18. Ng3
{[%clk 0:01:51]} 18... Nhf6 {[%clk 0:02:10.5]} 19. h4 {[%clk 0:01:37.4]} 19...
Rfe8 {[%clk 0:01:50]} 20. h5 {[%clk 0:01:33.8]} 20... Nf8 {[%clk 0:01:49.4]} 21.
Qb3 {[%clk 0:01:24.7]} 21... Qe6 {[%clk 0:01:27.4]} 22. Qd3 {[%clk 0:01:20]}
22... Qg4 {[%clk 0:01:22.6]} 23. Ne5 {[%clk 0:01:15.6]} 23... Qf4 {[%clk
0:01:20.8]} 24. Bxc6 {[%clk 0:01:07.8]} 24... Bxc6 {[%clk 0:01:20.6]} 25. Nxc6
{[%clk 0:01:08.7]} 25... bxa3 {[%clk 0:01:12.4]} 26. bxa3 {[%clk 0:01:07.9]}
26... Ne6 {[%clk 0:00:54.2]} 27. d5 {[%clk 0:01:01]} 27... Qd6 {[%clk
0:00:44.8]} 28. Rbd1 {[%clk 0:00:55.1]} 28... Nf4 {[%clk 0:00:42]} 29. Rxe8+
{[%clk 0:00:50.2]} 29... Rxe8 {[%clk 0:00:42.9]} 30. Qc4 {[%clk 0:00:43.7]}
30... N6xd5 {[%clk 0:00:36.5]} 31. hxg6 {[%clk 0:00:38.2]} 31... hxg6 {[%clk
0:00:31.7]} 32. Nxa5 {[%clk 0:00:38.5]} 32... Qxa3 {[%clk 0:00:26]} 33. Rxd5
{[%clk 0:00:21.6]} 33... Qa1+ {[%clk 0:00:25.1]} 34. Kh2 {[%clk 0:00:21.2]}
34... Nxd5 {[%clk 0:00:25.5]} 35. Qxd5 {[%clk 0:00:19.3]} 35... Kg7 {[%clk
0:00:25.3]} 36. Nb3 {[%clk 0:00:14.5]} 36... Rh8+ {[%clk 0:00:25.3]} 37. Nh5+
{[%clk 0:00:12.6]} 37... Rxh5+ {[%clk 0:00:19.9]} 38. Qxh5 {[%clk 0:00:12.5]}
38... Qb2 {[%clk 0:00:19.3]} 39. Qd5 {[%clk 0:00:11.9]} 39... Qxf2 {[%clk
0:00:19.4]} 40. Qd4+ {[%clk 0:00:12.5]} 40... Qf6 {[%clk 0:00:16.7]} 41. Qxf6+
{[%clk 0:00:13]} 41... Kxf6 {[%clk 0:00:17.6]} 42. Kg3 {[%clk 0:00:13.8]} 42...
Ke5 {[%clk 0:00:18.1]} 43. Nc5 {[%clk 0:00:13.9]} 43... f5 {[%clk 0:00:17.1]}
44. Nd3+ {[%clk 0:00:14]} 44... Ke4 {[%clk 0:00:17.3]} 45. Nf2+ {[%clk
0:00:14.4]} 45... Ke5 {[%clk 0:00:17.3]} 46. Nh3 {[%clk 0:00:15.1]} 46... Ke4
{[%clk 0:00:17.3]} 47. Kh4 {[%clk 0:00:13.8]} 47... Ke3 {[%clk 0:00:12.9]} 48.
Kg5 {[%clk 0:00:12.2]} 48... Ke2 {[%clk 0:00:13.4]} 49. Kxg6 {[%clk 0:00:11.4]}
49... Kf1 {[%clk 0:00:14.3]} 50. Nf4 {[%clk 0:00:11.8]} 1-0

[Event "Early-Titled-Tuesday-Blitz-June-18-2024"]
[Site "Chess.com"]
[Date "2024.06.18"]
[Round "4"]
[White "Chessgod9oninsta"]
[Black "Barboval"]
[Result "1-0"]
[WhiteElo "2765"]
[BlackElo "2529"]
[TimeControl "180+1"]
[EndTime "8:41:49 PDT"]
[Termination "Chessgod9oninsta won by checkmate"]

1. d4 {[%clk 0:03:00.9]} 1... Nf6 {[%clk 0:03:00.9]} 2. Bf4 {[%clk 0:02:58.7]}
2... d6 {[%clk 0:02:54]} 3. e3 {[%clk 0:02:57.4]} 3... Nbd7 {[%clk 0:02:54.2]}
4. c3 {[%clk 0:02:57]} 4... e5 {[%clk 0:02:54]} 5. Bg3 {[%clk 0:02:56.6]} 5...
c6 {[%clk 0:02:52.8]} 6. Nf3 {[%clk 0:02:57]} 6... Qc7 {[%clk 0:02:53.4]} 7. Be2
{[%clk 0:02:56.6]} 7... g6 {[%clk 0:02:53.8]} 8. O-O {[%clk 0:02:57]} 8... Bg7
{[%clk 0:02:53.1]} 9. Nbd2 {[%clk 0:02:57.6]} 9... O-O {[%clk 0:02:52]} 10. h3
{[%clk 0:02:57.5]} 10... Nh5 {[%clk 0:02:48.2]} 11. Bh2 {[%clk 0:02:56.7]} 11...
f5 {[%clk 0:02:48.3]} 12. dxe5 {[%clk 0:02:51.6]} 12... dxe5 {[%clk 0:02:49.2]}
13. Ng5 {[%clk 0:02:51.5]} 13... Qd6 {[%clk 0:02:23.7]} 14. Bc4+ {[%clk
0:02:38.9]} 14... Kh8 {[%clk 0:02:21.1]} 15. Nf7+ {[%clk 0:02:39.8]} 15... Rxf7
{[%clk 0:02:21.5]} 16. Bxf7 {[%clk 0:02:40.4]} 16... Qe7 {[%clk 0:02:12.4]} 17.
Bb3 {[%clk 0:02:39.9]} 17... Nc5 {[%clk 0:02:12.5]} 18. Nc4 {[%clk 0:02:35.6]}
18... Nxb3 {[%clk 0:02:06.2]} 19. axb3 {[%clk 0:02:34.2]} 19... Be6 {[%clk
0:02:03.4]} 20. Nxe5 {[%clk 0:02:28.8]} 20... Rd8 {[%clk 0:02:03.3]} 21. Qc2
{[%clk 0:02:27.2]} 21... a6 {[%clk 0:01:47.1]} 22. c4 {[%clk 0:02:19.3]} 22...
Qg5 {[%clk 0:01:37.3]} 23. Rad1 {[%clk 0:02:12.8]} 23... Rf8 {[%clk 0:01:37.4]}
24. Rd6 {[%clk 0:02:03.4]} 24... Bc8 {[%clk 0:01:35.7]} 25. Nf3 {[%clk
0:01:40.9]} 25... Qe7 {[%clk 0:01:27.8]} 26. Rfd1 {[%clk 0:01:40]} 26... f4
{[%clk 0:01:28.3]} 27. exf4 {[%clk 0:01:37]} 27... Nxf4 {[%clk 0:01:24.3]} 28.
Bxf4 {[%clk 0:01:37.5]} 28... Rxf4 {[%clk 0:01:25.2]} 29. Rd8+ {[%clk
0:01:36.6]} 29... Rf8 {[%clk 0:01:25.9]} 30. Rxf8+ {[%clk 0:01:36.1]} 30... Qxf8
{[%clk 0:01:24.6]} 31. Qd2 {[%clk 0:01:33.3]} 31... Bf6 {[%clk 0:01:21.3]} 32.
Qf4 {[%clk 0:01:25]} 32... Kg7 {[%clk 0:01:17.2]} 33. Ng5 {[%clk 0:01:17.2]}
33... Qe7 {[%clk 0:01:06.5]} 34. Nf3 {[%clk 0:00:58.5]} 34... Bf5 {[%clk
0:00:57.2]} 35. Re1 {[%clk 0:00:38.3]} 35... Qd7 {[%clk 0:00:57.4]} 36. Ne5
{[%clk 0:00:37.4]} 36... Qd6 {[%clk 0:00:50.3]} 37. g4 {[%clk 0:00:29.8]} 37...
Bc2 {[%clk 0:00:50.4]} 38. Re3 {[%clk 0:00:23.3]} 38... g5 {[%clk 0:00:48.4]}
39. Qg3 {[%clk 0:00:21.7]} 39... b5 {[%clk 0:00:24.6]} 40. cxb5 {[%clk 0:00:21]}
40... cxb5 {[%clk 0:00:25.5]} 41. Nf3 {[%clk 0:00:19.6]} 41... Qc6 {[%clk
0:00:16.6]} 42. h4 {[%clk 0:00:15.9]} 42... h6 {[%clk 0:00:15.3]} 43. hxg5
{[%clk 0:00:15.5]} 43... hxg5 {[%clk 0:00:16.2]} 44. Nxg5 {[%clk 0:00:11.4]}
44... Bxg5 {[%clk 0:00:11.7]} 45. Rc3 {[%clk 0:00:11.6]} 45... Qg6 {[%clk
0:00:12.4]} 46. Qc7+ {[%clk 0:00:11.4]} 46... Kh6 {[%clk 0:00:11.2]} 47. Rxc2
{[%clk 0:00:11.5]} 47... Bf6 {[%clk 0:00:10.2]} 48. Qh2+ {[%clk 0:00:11.5]}
48... Kg7 {[%clk 0:00:09.4]} 49. Rc7+ {[%clk 0:00:12.3]} 49... Kg8 {[%clk
0:00:08.9]} 50. Qf4 {[%clk 0:00:12.8]} 50... Qb1+ {[%clk 0:00:07.9]} 51. Kh2
{[%clk 0:00:11.9]} 51... Qg6 {[%clk 0:00:08]} 52. Rc6 {[%clk 0:00:09.2]} 52...
Qh7+ {[%clk 0:00:07.7]} 53. Kg2 {[%clk 0:00:08.3]} 53... Bg7 {[%clk 0:00:06.4]}
54. Rc8+ {[%clk 0:00:08.2]} 54... Bf8 {[%clk 0:00:06.6]} 55. Qxf8# {[%clk
0:00:08.8]} 1-0

[Event "Early-Titled-Tuesday-Blitz-June-18-2024"]
[Site "Chess.com"]
[Date "2024.06.18"]
[Round "4"]
[White "slidingknight2775"]
[Black "topce"]
[Result "0-1"]
[WhiteElo "2683"]
[BlackElo "2518"]
[TimeControl "180+1"]
[EndTime "8:41:51 PDT"]
[Termination "topce won by checkmate"]

1. d4 {[%clk 0:03:00.9]} 1... e6 {[%clk 0:02:57.5]} 2. c4 {[%clk 0:03:01.1]}
2... Nf6 {[%clk 0:02:56.3]} 3. Nc3 {[%clk 0:03:01.3]} 3... c5 {[%clk 0:02:54.9]}
4. d5 {[%clk 0:03:01.1]} 4... d6 {[%clk 0:02:54.9]} 5. Nf3 {[%clk 0:02:59.7]}
5... g6 {[%clk 0:02:53.1]} 6. e4 {[%clk 0:02:57.8]} 6... exd5 {[%clk 0:02:51.4]}
7. cxd5 {[%clk 0:02:58.7]} 7... Bg7 {[%clk 0:02:51.1]} 8. Be2 {[%clk 0:02:58.5]}
8... O-O {[%clk 0:02:50.4]} 9. Be3 {[%clk 0:02:59]} 9... Ng4 {[%clk 0:02:44.3]}
10. Bg5 {[%clk 0:02:58.6]} 10... Qb6 {[%clk 0:02:43.1]} 11. Rb1 {[%clk
0:02:53.3]} 11... h6 {[%clk 0:02:34.1]} 12. Bd2 {[%clk 0:02:45.3]} 12... Qd8
{[%clk 0:02:27.7]} 13. O-O {[%clk 0:02:43.9]} 13... a6 {[%clk 0:02:14.9]} 14. a4
{[%clk 0:02:41.5]} 14... Nd7 {[%clk 0:02:10]} 15. Qc1 {[%clk 0:02:33.7]} 15...
Kh7 {[%clk 0:02:06.4]} 16. b4 {[%clk 0:02:27.5]} 16... cxb4 {[%clk 0:02:05.6]}
17. Rxb4 {[%clk 0:02:28.4]} 17... Nc5 {[%clk 0:02:04.9]} 18. h3 {[%clk
0:02:22.6]} 18... Nf6 {[%clk 0:02:01.4]} 19. Be3 {[%clk 0:02:17.6]} 19... Bd7
{[%clk 0:01:41.3]} 20. e5 {[%clk 0:02:07.4]} 20... Ne8 {[%clk 0:01:37.3]} 21.
Bxc5 {[%clk 0:02:05]} 21... dxc5 {[%clk 0:01:36.5]} 22. Rxb7 {[%clk 0:02:05.6]}
22... Bc8 {[%clk 0:01:31.2]} 23. Rb1 {[%clk 0:02:02.8]} 23... Nc7 {[%clk
0:01:29.8]} 24. Bc4 {[%clk 0:01:59.4]} 24... Bf5 {[%clk 0:01:26.7]} 25. Rb3
{[%clk 0:01:57.8]} 25... Rb8 {[%clk 0:01:18.1]} 26. Rxb8 {[%clk 0:01:47.9]}
26... Qxb8 {[%clk 0:01:19]} 27. d6 {[%clk 0:01:47.1]} 27... Ne6 {[%clk
0:01:14.5]} 28. g4 {[%clk 0:01:40.4]} 28... Nd4 {[%clk 0:00:57.4]} 29. Nxd4
{[%clk 0:01:19.7]} 29... cxd4 {[%clk 0:00:58.3]} 30. gxf5 {[%clk 0:01:15.1]}
30... dxc3 {[%clk 0:00:55.1]} 31. f6 {[%clk 0:01:13.1]} 31... Bxf6 {[%clk
0:00:46.9]} 32. exf6 {[%clk 0:01:12.5]} 32... Qxd6 {[%clk 0:00:46.7]} 33. Qxc3
{[%clk 0:01:08.7]} 33... Rc8 {[%clk 0:00:46]} 34. Qd3 {[%clk 0:01:05.7]} 34...
Qxf6 {[%clk 0:00:44.3]} 35. Bxa6 {[%clk 0:00:47.5]} 35... Rc3 {[%clk 0:00:43.8]}
36. Qd5 {[%clk 0:00:17.2]} 36... Kg7 {[%clk 0:00:32.2]} 37. Bd3 {[%clk
0:00:11.6]} 37... Qf4 {[%clk 0:00:28.3]} 38. Qe4 {[%clk 0:00:08.9]} 38... Qd6
{[%clk 0:00:25.8]} 39. Rd1 {[%clk 0:00:06]} 39... h5 {[%clk 0:00:24.1]} 40. Qe2
{[%clk 0:00:05]} 40... Qf4 {[%clk 0:00:17.9]} 41. Qe3 {[%clk 0:00:02.8]} 41...
Qf6 {[%clk 0:00:16.1]} 42. Kg2 {[%clk 0:00:03.1]} 42... Ra3 {[%clk 0:00:15.3]}
43. Qe4 {[%clk 0:00:02.8]} 43... h4 {[%clk 0:00:11.6]} 44. Qf3 {[%clk
0:00:03.4]} 44... Qg5+ {[%clk 0:00:11.5]} 45. Kh1 {[%clk 0:00:03.4]} 45... Rxa4
{[%clk 0:00:10.1]} 46. Be2 {[%clk 0:00:03.1]} 46... Rf4 {[%clk 0:00:09.7]} 47.
Qe3 {[%clk 0:00:03.2]} 47... Qf6 {[%clk 0:00:10.6]} 48. Rg1 {[%clk 0:00:03.3]}
48... Rxf2 {[%clk 0:00:10.3]} 49. Bf1 {[%clk 0:00:03.9]} 49... Rxf1 {[%clk
0:00:10]} 50. Qe2 {[%clk 0:00:02.7]} 50... Rf2 {[%clk 0:00:09.4]} 51. Qe3 {[%clk
0:00:02.5]} 51... Qc6+ {[%clk 0:00:09.1]} 52. Rg2 {[%clk 0:00:01]} 52... Qxg2#
{[%clk 0:00:09.4]} 0-1

[Event "Early-Titled-Tuesday-Blitz-June-18-2024"]
[Site "Chess.com"]
[Date "2024.06.18"]
[Round "4"]
[White "GHANDEEVAM2003"]
[Black "Lion-Al-Messi"]
[Result "1-0"]
[WhiteElo "2994"]
[BlackElo "2628"]
[TimeControl "180+1"]
[EndTime "8:41:52 PDT"]
[Termination "GHANDEEVAM2003 won by checkmate"]

1. b3 {[%clk 0:03:00.9]} 1... e5 {[%clk 0:02:59.7]} 2. Bb2 {[%clk 0:03:00.5]}
2... Nc6 {[%clk 0:03:00.4]} 3. e3 {[%clk 0:03:00.9]} 3... Nf6 {[%clk 0:03:00.6]}
4. Nf3 {[%clk 0:03:00.8]} 4... Bd6 {[%clk 0:03:00.9]} 5. Na3 {[%clk 0:03:00]}
5... e4 {[%clk 0:02:48.7]} 6. Ng5 {[%clk 0:02:54]} 6... Be5 {[%clk 0:02:46.6]}
7. Bxe5 {[%clk 0:02:48.4]} 7... Nxe5 {[%clk 0:02:47.5]} 8. f4 {[%clk 0:02:47.9]}
8... exf3 {[%clk 0:02:44.2]} 9. Nxf3 {[%clk 0:02:48.2]} 9... Nxf3+ {[%clk
0:02:44.4]} 10. Qxf3 {[%clk 0:02:49.1]} 10... d5 {[%clk 0:02:44.1]} 11. Bd3
{[%clk 0:02:46.5]} 11... Bg4 {[%clk 0:02:43.7]} 12. Qf4 {[%clk 0:02:45.6]} 12...
c6 {[%clk 0:02:41.9]} 13. O-O {[%clk 0:02:42.8]} 13... O-O {[%clk 0:02:38.8]}
14. h3 {[%clk 0:02:37.1]} 14... Bh5 {[%clk 0:02:36]} 15. Qh4 {[%clk 0:02:30.8]}
15... Bg6 {[%clk 0:02:35.4]} 16. Bxg6 {[%clk 0:02:30.9]} 16... hxg6 {[%clk
0:02:35.2]} 17. c3 {[%clk 0:02:29.2]} 17... Qd6 {[%clk 0:02:29.9]} 18. Nc2
{[%clk 0:02:27.7]} 18... Ne4 {[%clk 0:02:30.1]} 19. Qe1 {[%clk 0:02:27.8]} 19...
Ng3 {[%clk 0:02:29.3]} 20. Rf3 {[%clk 0:02:27.3]} 20... Ne4 {[%clk 0:02:25.6]}
21. d3 {[%clk 0:02:26.6]} 21... Ng5 {[%clk 0:02:24.9]} 22. Rg3 {[%clk
0:02:25.4]} 22... Qe5 {[%clk 0:02:17.5]} 23. Nd4 {[%clk 0:02:21.4]} 23... Rae8
{[%clk 0:02:16.1]} 24. Qf2 {[%clk 0:02:19.3]} 24... c5 {[%clk 0:02:05.6]} 25.
Ne2 {[%clk 0:02:15.7]} 25... f6 {[%clk 0:02:01.5]} 26. Rf1 {[%clk 0:02:09.1]}
26... Re7 {[%clk 0:01:59.4]} 27. Nf4 {[%clk 0:02:08.9]} 27... Qf5 {[%clk
0:00:48.5]} 28. h4 {[%clk 0:02:08.2]} 28... Ref7 {[%clk 0:00:35.3]} 29. c4
{[%clk 0:01:44.4]} 29... dxc4 {[%clk 0:00:34.2]} 30. bxc4 {[%clk 0:01:45.3]}
30... Ne6 {[%clk 0:00:21.4]} 31. Qe2 {[%clk 0:01:34.5]} 31... Nxf4 {[%clk
0:00:20.8]} 32. Rxf4 {[%clk 0:01:35.4]} 32... Qh5 {[%clk 0:00:13.4]} 33. Qxh5
{[%clk 0:01:33.8]} 33... gxh5 {[%clk 0:00:14.3]} 34. Rf5 {[%clk 0:01:34.7]}
34... Rd8 {[%clk 0:00:13.6]} 35. e4 {[%clk 0:01:17.8]} 35... b6 {[%clk
0:00:13.3]} 36. Rxh5 {[%clk 0:01:17.4]} 36... Rfd7 {[%clk 0:00:13.5]} 37. Rd5
{[%clk 0:01:18.1]} 37... Rxd5 {[%clk 0:00:12.3]} 38. exd5 {[%clk 0:01:19]} 38...
Re8 {[%clk 0:00:12.3]} 39. Kf2 {[%clk 0:01:18.6]} 39... Kf7 {[%clk 0:00:11.3]}
40. Re3 {[%clk 0:01:18.9]} 40... Rh8 {[%clk 0:00:10.7]} 41. g3 {[%clk
0:01:17.5]} 41... Rh5 {[%clk 0:00:08.6]} 42. d6 {[%clk 0:01:11.2]} 42... Rh8
{[%clk 0:00:07.9]} 43. Re7+ {[%clk 0:01:10.7]} 43... Kg6 {[%clk 0:00:08.1]} 44.
Rxa7 {[%clk 0:01:11.3]} 44... Rd8 {[%clk 0:00:08.4]} 45. d7 {[%clk 0:01:10.4]}
45... Kf5 {[%clk 0:00:08.6]} 46. Kf3 {[%clk 0:01:01.3]} 46... Ke5 {[%clk
0:00:08.6]} 47. Ke3 {[%clk 0:00:55.5]} 47... f5 {[%clk 0:00:08.3]} 48. Rb7
{[%clk 0:00:55.4]} 48... Kd6 {[%clk 0:00:04.1]} 49. Rxb6+ {[%clk 0:00:54.7]}
49... Kxd7 {[%clk 0:00:04.5]} 50. Rb7+ {[%clk 0:00:55.4]} 50... Ke6 {[%clk
0:00:04.7]} 51. Rxg7 {[%clk 0:00:56.3]} 51... Ra8 {[%clk 0:00:05]} 52. Rg6+
{[%clk 0:00:54.1]} 52... Ke5 {[%clk 0:00:05]} 53. Rc6 {[%clk 0:00:54.1]} 53...
Ra5 {[%clk 0:00:05.1]} 54. h5 {[%clk 0:00:53.4]} 54... Rxa2 {[%clk 0:00:04.4]}
55. Rxc5+ {[%clk 0:00:53.5]} 55... Kf6 {[%clk 0:00:04.7]} 56. Rc6+ {[%clk
0:00:50.6]} 56... Kg5 {[%clk 0:00:04.9]} 57. h6 {[%clk 0:00:50.9]} 57... Rg2
{[%clk 0:00:05.5]} 58. Kf3 {[%clk 0:00:50.7]} 58... Rd2 {[%clk 0:00:05.8]} 59.
Rd6 {[%clk 0:00:51.3]} 59... Rh2 {[%clk 0:00:05.8]} 60. c5 {[%clk 0:00:51.1]}
60... Rc2 {[%clk 0:00:05.1]} 61. c6 {[%clk 0:00:51.5]} 61... Rc3 {[%clk
0:00:04.8]} 62. h7 {[%clk 0:00:51]} 62... f4 {[%clk 0:00:04.4]} 63. gxf4+ {[%clk
0:00:45.9]} 63... Kf5 {[%clk 0:00:04.2]} 64. h8=Q {[%clk 0:00:46]} 64... Rxc6
{[%clk 0:00:04]} 65. Qe5# {[%clk 0:00:45.3]} 1-0

[Event "Early-Titled-Tuesday-Blitz-June-18-2024"]
[Site "Chess.com"]
[Date "2024.06.18"]
[Round "4"]
[White "twofoxniel"]
[Black "Rile-Man"]
[Result "0-1"]
[WhiteElo "2682"]
[BlackElo "2524"]
[TimeControl "180+1"]
[EndTime "8:41:53 PDT"]
[Termination "Rile-Man won by checkmate"]

1. e4 {[%clk 0:03:00.9]} 1... Nc6 {[%clk 0:02:59.8]} 2. Nf3 {[%clk 0:02:59.1]}
2... d6 {[%clk 0:03:00.7]} 3. Nc3 {[%clk 0:02:57.3]} 3... Nf6 {[%clk 0:03:00.1]}
4. Bc4 {[%clk 0:02:56.3]} 4... g6 {[%clk 0:02:59.9]} 5. d3 {[%clk 0:02:56.4]}
5... Bg7 {[%clk 0:02:59.4]} 6. h3 {[%clk 0:02:56.8]} 6... O-O {[%clk 0:02:59]}
7. O-O {[%clk 0:02:57.5]} 7... a6 {[%clk 0:02:58.1]} 8. Re1 {[%clk 0:02:57.9]}
8... Na5 {[%clk 0:02:56.4]} 9. Bb3 {[%clk 0:02:57.8]} 9... Nxb3 {[%clk
0:02:56.4]} 10. axb3 {[%clk 0:02:58.7]} 10... e5 {[%clk 0:02:55.4]} 11. Bg5
{[%clk 0:02:55.1]} 11... h6 {[%clk 0:02:55.3]} 12. Bh4 {[%clk 0:02:55.1]} 12...
g5 {[%clk 0:02:54.8]} 13. Bg3 {[%clk 0:02:55.5]} 13... Nh5 {[%clk 0:02:55]} 14.
Bh2 {[%clk 0:02:46.9]} 14... Nf4 {[%clk 0:02:52.2]} 15. d4 {[%clk 0:02:46.3]}
15... exd4 {[%clk 0:02:44.8]} 16. Nxd4 {[%clk 0:02:45.2]} 16... Qf6 {[%clk
0:02:45.2]} 17. Nde2 {[%clk 0:02:28.7]} 17... Nxe2+ {[%clk 0:02:25.6]} 18. Rxe2
{[%clk 0:02:28.6]} 18... Be6 {[%clk 0:02:25.7]} 19. e5 {[%clk 0:02:20.5]} 19...
dxe5 {[%clk 0:02:20.3]} 20. Bxe5 {[%clk 0:02:20.9]} 20... Qg6 {[%clk 0:02:20.5]}
21. Bxc7 {[%clk 0:02:06.4]} 21... g4 {[%clk 0:02:19.5]} 22. h4 {[%clk
0:02:06.5]} 22... Rac8 {[%clk 0:02:16.1]} 23. Be5 {[%clk 0:01:58.9]} 23... g3
{[%clk 0:02:12.7]} 24. Bxg7 {[%clk 0:01:45.1]} 24... Qxg7 {[%clk 0:02:07.2]} 25.
fxg3 {[%clk 0:01:45.2]} 25... Bg4 {[%clk 0:02:06.7]} 26. Qc1 {[%clk 0:00:56]}
26... Rxc3 {[%clk 0:02:00.2]} 27. bxc3 {[%clk 0:00:52.2]} 27... Bxe2 {[%clk
0:01:59.6]} 28. Qe3 {[%clk 0:00:52.7]} 28... Bb5 {[%clk 0:01:54.8]} 29. Rd1
{[%clk 0:00:52]} 29... Re8 {[%clk 0:01:53.3]} 30. Qf4 {[%clk 0:00:49.2]} 30...
Qxc3 {[%clk 0:01:42.5]} 31. Kh2 {[%clk 0:00:38.3]} 31... Qg7 {[%clk 0:01:14.6]}
32. Rd6 {[%clk 0:00:33.7]} 32... Re6 {[%clk 0:01:00.2]} 33. Rd8+ {[%clk
0:00:33.7]} 33... Kh7 {[%clk 0:00:59.1]} 34. c4 {[%clk 0:00:23.5]} 34... Bc6
{[%clk 0:00:57.4]} 35. Rd2 {[%clk 0:00:20.6]} 35... Qf6 {[%clk 0:00:52.9]} 36.
Qg4 {[%clk 0:00:15.1]} 36... Qg6 {[%clk 0:00:45.3]} 37. Qf4 {[%clk 0:00:14.4]}
37... Re4 {[%clk 0:00:44.2]} 38. Qc7 {[%clk 0:00:13.4]} 38... Re3 {[%clk
0:00:40.9]} 39. Rf2 {[%clk 0:00:13.1]} 39... Kg7 {[%clk 0:00:36.6]} 40. b4
{[%clk 0:00:13.3]} 40... h5 {[%clk 0:00:27.2]} 41. Qf4 {[%clk 0:00:08.7]} 41...
Re4 {[%clk 0:00:24.7]} 42. Qc1 {[%clk 0:00:06.8]} 42... Rg4 {[%clk 0:00:22.2]}
43. Qc3+ {[%clk 0:00:06.9]} 43... Kh7 {[%clk 0:00:21.8]} 44. Rf6 {[%clk
0:00:05.9]} 44... Rxh4+ {[%clk 0:00:20.4]} 45. Kg1 {[%clk 0:00:05]} 45... Qb1+
{[%clk 0:00:11.4]} 46. Kf2 {[%clk 0:00:01.3]} 46... Qa2+ {[%clk 0:00:11.3]} 47.
Ke3 {[%clk 0:00:01.7]} 47... Re4+ {[%clk 0:00:10]} 48. Kd3 {[%clk 0:00:02]}
48... Qe2# {[%clk 0:00:08.1]} 0-1